[Event "The Allsvenskan 2024/25 Div I 3: SS Manhem II - SS Manhem"]
[Site "Goteborgs Schackcentrum, Vegatan 20, Gothenburg, Sweden"]
[Date "2025.01.12"]
[Round "1.1"]
[White "Welin, Mats"]
[Black "Bengtsson, Jessica"]
[Result "1-0"]
[TimeControl "90 minutes for 40 moves + 30 minutes for the rest of the game + 30 seconds per move from move one."]
[WhiteTitle "FM"]
[BlackTitle "WFM"]
[WhiteFideId "1705180"]
[BlackFideId "1711083"]
[WhiteElo "2296"]
[BlackElo "2029"]

1. e4 {[%clk 01:30:43]} {[%emt 00:00:15]} e5 {[%clk 01:30:49]} {[%emt
00:00:12]} 2. Nf3 {[%clk 01:30:34]} {[%emt 00:00:40]} Nc6 {[%clk 01:31:09]}
{[%emt 00:00:09]} 3. Bb5 {[%clk 01:30:00]} {[%emt 00:01:05]} Nf6 {[%clk
01:31:19]} {[%emt 00:00:20]} 4. d3 {[%clk 01:29:15]} {[%emt 00:01:15]} Bc5
{[%clk 01:30:58]} {[%emt 00:00:51]} 5. Bxc6 {[%clk 01:28:38]} {[%emt 00:01:08]}
dxc6 {[%clk 01:31:12]} {[%emt 00:00:15]} 6. O-O {[%clk 01:28:43]} {[%emt
00:00:25]} Qe7 {[%clk 01:26:56]} {[%emt 00:04:45]} 7. Nbd2 {[%clk 01:28:14]}
{[%emt 00:01:00]} Bg4 {[%clk 01:24:15]} {[%emt 00:03:12]} 8. h3 {[%clk
01:21:02]} {[%emt 00:07:42]} Bh5 {[%clk 01:22:58]} {[%emt 00:01:46]} 9. a3
{[%clk 01:21:09]} {[%emt 00:00:23]} O-O {[%clk 01:14:54]} {[%emt 00:08:34]} 10.
Nc4 {[%clk 01:18:55]} {[%emt 00:02:44]} Nd7 {[%clk 01:04:48]} {[%emt 00:10:35]}
11. Re1 {[%clk 01:12:47]} {[%emt 00:06:39]} Rad8 {[%clk 01:00:51]} {[%emt
00:04:26]} 12. Bd2 {[%clk 01:09:27]} {[%emt 00:03:51]} Rfe8 {[%clk 00:59:13]}
{[%emt 00:02:08]} 13. b4 {[%clk 01:04:05]} {[%emt 00:05:52]} Bb6 {[%clk
00:54:47]} {[%emt 00:04:55]} 14. a4 {[%clk 01:00:26]} {[%emt 00:04:11]} a6
{[%clk 00:53:51]} {[%emt 00:01:25]} 15. Rb1 {[%clk 00:59:39]} {[%emt 00:01:18]}
Ba7 {[%clk 00:49:49]} {[%emt 00:04:32]} 16. g4 {[%clk 00:53:28]} {[%emt
00:06:41]} Bg6 {[%clk 00:50:07]} {[%emt 00:00:12]} 17. b5 {[%clk 00:53:50]}
{[%emt 00:00:08]} cxb5 {[%clk 00:46:57]} {[%emt 00:03:41]} 18. axb5 {[%clk
00:52:21]} {[%emt 00:01:58]} f6 {[%clk 00:40:26]} {[%emt 00:07:00]} 19. bxa6
{[%clk 00:51:45]} {[%emt 00:01:08]} bxa6 {[%clk 00:40:48]} {[%emt 00:00:07]} 20.
Ra1 {[%clk 00:48:00]} {[%emt 00:04:14]} Qe6 {[%clk 00:38:12]} {[%emt 00:03:06]}
21. Qe2 {[%clk 00:45:15]} {[%emt 00:03:16]} Rb8 {[%clk 00:36:02]} {[%emt
00:02:39]} 22. Ra3 {[%clk 00:42:29]} {[%emt 00:03:17]} Bc5 {[%clk 00:35:18]}
{[%emt 00:01:13]} 23. Ra4 {[%clk 00:42:22]} {[%emt 00:00:37]} Ra8 {[%clk
00:32:53]} {[%emt 00:02:54]} 24. Rea1 {[%clk 00:41:18]} {[%emt 00:01:36]} Reb8
{[%clk 00:29:10]} {[%emt 00:04:13]} 25. Kg2 {[%clk 00:38:54]} {[%emt 00:02:54]}
Rb7 {[%clk 00:23:47]} {[%emt 00:05:52]} 26. Bc3 {[%clk 00:31:57]} {[%emt
00:07:28]} Be8 {[%clk 00:21:34]} {[%emt 00:02:43]} 27. Ra5 {[%clk 00:29:04]}
{[%emt 00:03:23]} Bb4 {[%clk 00:19:00]} {[%emt 00:03:04]} 28. Bxb4 {[%clk
00:25:56]} {[%emt 00:03:38]} Rxb4 {[%clk 00:19:28]} {[%emt 00:00:02]} 29. c3
{[%clk 00:25:19]} {[%emt 00:01:07]} Rb7 {[%clk 00:19:10]} {[%emt 00:00:47]} 30.
d4 {[%clk 00:22:19]} {[%emt 00:03:32]} Nb8 {[%clk 00:15:53]} {[%emt 00:03:46]}
31. Ncd2 {[%clk 00:18:20]} {[%emt 00:04:28]} exd4 {[%clk 00:10:45]} {[%emt
00:05:39]} 32. cxd4 {[%clk 00:16:03]} {[%emt 00:02:47]} Bb5 {[%clk 00:09:12]}
{[%emt 00:02:03]} 33. Qe3 {[%clk 00:14:38]} {[%emt 00:01:56]} c6 {[%clk
00:08:29]} {[%emt 00:01:12]} 34. Qc3 {[%clk 00:08:55]} {[%emt 00:06:14]} Nd7
{[%clk 00:08:07]} {[%emt 00:00:52]} 35. d5 {[%clk 00:08:51]} {[%emt 00:00:34]}
Qd6 {[%clk 00:03:12]} {[%emt 00:05:25]} 36. Nd4 {[%clk 00:07:33]} {[%emt
00:01:48]} Rc7 {[%clk 00:02:09]} {[%emt 00:01:32]} 37. dxc6 {[%clk 00:05:23]}
{[%emt 00:02:41]} Rac8 {[%clk 00:00:35]} {[%emt 00:02:04]} 38. Nxb5 {[%clk
00:05:08]} {[%emt 00:00:45]} axb5 {[%clk 00:00:56]} {[%emt 00:00:09]} 39. Qb3+
{[%clk 00:05:25]} {[%emt 00:00:13]} 1-0

[Event "The Allsvenskan 2024/25 Div I 3: SS Manhem II - SS Manhem"]
[Site "Goteborgs Schackcentrum, Vegatan 20, Gothenburg, Sweden"]
[Date "2025.01.12"]
[Round "1.2"]
[White "Outgajjouft, Said"]
[Black "Fendrich, David"]
[Result "0-1"]
[TimeControl "90 minutes for 40 moves + 30 minutes for the rest of the game + 30 seconds per move from move one."]
[WhiteFideId "1716174"]
[BlackFideId "1705725"]
[WhiteElo "2055"]
[BlackElo "2192"]

1. e4 {[%clk 01:30:58]} {[%emt 00:00:01]} c5 {[%clk 01:30:52]} {[%emt
00:00:09]} 2. Nc3 {[%clk 01:31:22]} {[%emt 00:00:06]} e6 {[%clk 01:31:15]}
{[%emt 00:00:07]} 3. f4 {[%clk 01:31:36]} {[%emt 00:00:15]} d5 {[%clk
01:31:29]} {[%emt 00:00:17]} 4. Nf3 {[%clk 01:30:56]} {[%emt 00:01:10]} dxe4
{[%clk 01:30:24]} {[%emt 00:01:35]} 5. Nxe4 {[%clk 01:31:17]} {[%emt 00:00:08]}
Nc6 {[%clk 01:30:37]} {[%emt 00:00:17]} 6. d3 {[%clk 01:23:52]} {[%emt
00:07:55]} Nf6 {[%clk 01:29:20]} {[%emt 00:01:47]} 7. Bd2 {[%clk 01:13:53]}
{[%emt 00:10:30]} Be7 {[%clk 01:18:05]} {[%emt 00:11:45]} 8. g3 {[%clk
01:07:30]} {[%emt 00:06:53]} O-O {[%clk 01:12:33]} {[%emt 00:06:02]} 9. Bg2
{[%clk 01:06:11]} {[%emt 00:01:49]} Qb6 {[%clk 01:04:51]} {[%emt 00:08:12]} 10.
Rb1 {[%clk 01:03:47]} {[%emt 00:02:54]} c4 {[%clk 00:59:48]} {[%emt 00:05:33]}
11. Nxf6+ {[%clk 00:52:16]} {[%emt 00:12:01]} Bxf6 {[%clk 00:59:58]} {[%emt
00:00:19]} 12. dxc4 {[%clk 00:52:43]} {[%emt 00:00:04]} e5 {[%clk 00:52:52]}
{[%emt 00:07:36]} 13. Nxe5 {[%clk 00:22:23]} {[%emt 00:30:50]} Nxe5 {[%clk
00:51:12]} {[%emt 00:02:10]} 14. fxe5 {[%clk 00:22:45]} {[%emt 00:00:08]} Re8
{[%clk 00:48:12]} {[%emt 00:03:30]} 15. Qf3 {[%clk 00:22:20]} {[%emt 00:00:54]}
Rxe5+ {[%clk 00:37:28]} {[%emt 00:11:15]} 16. Kd1 {[%clk 00:22:16]} {[%emt
00:00:33]} Qd4 {[%clk 00:26:33]} {[%emt 00:11:25]} 17. Qf4 {[%clk 00:20:34]}
{[%emt 00:02:13]} Qd6 {[%clk 00:10:01]} {[%emt 00:17:02]} 18. Re1 {[%clk
00:13:20]} {[%emt 00:07:44]} Be6 {[%clk 00:09:35]} {[%emt 00:00:56]} 19. Bxb7
{[%clk 00:03:00]} {[%emt 00:10:50]} Rd8 {[%clk 00:09:24]} {[%emt 00:00:41]} 20.
Rxe5 {[%clk 00:02:14]} {[%emt 00:01:16]} Bxe5 {[%clk 00:09:34]} {[%emt
00:00:20]} 21. Qf2 {[%clk 00:02:13]} {[%emt 00:00:31]} Bxc4 {[%clk 00:07:03]}
{[%emt 00:03:01]} 22. Kc1 {[%clk 00:00:59]} {[%emt 00:01:44]} Bd4 {[%clk
00:04:48]} {[%emt 00:02:44]} 23. Qf4 {[%clk 00:00:42]} {[%emt 00:00:48]} Qb6
{[%clk 00:04:46]} 0-1

[Event "The Allsvenskan 2024/25 Div I 3: SS Manhem II - SS Manhem"]
[Site "Goteborgs Schackcentrum, Vegatan 20, Gothenburg, Sweden"]
[Date "2025.01.12"]
[Round "1.3"]
[White "Lindholm, Gustav"]
[Black "Andreasson, Vincent"]
[Result "1-0"]
[TimeControl "90 minutes for 40 moves + 30 minutes for the rest of the game + 30 seconds per move from move one."]
[WhiteFideId "1736515"]
[BlackFideId "1721321"]
[WhiteElo "2112"]
[BlackElo "1998"]

1. d4 {[%clk 01:30:56]} {[%emt 00:00:03]} d5 {[%clk 01:30:57]} {[%emt
00:00:04]} 2. c4 {[%clk 01:31:19]} {[%emt 00:00:06]} c6 {[%clk 01:31:23]}
{[%emt 00:00:05]} 3. Nf3 {[%clk 01:31:46]} {[%emt 00:00:03]} e6 {[%clk
01:31:40]} {[%emt 00:00:14]} 4. Nc3 {[%clk 01:31:28]} {[%emt 00:00:46]} dxc4
{[%clk 01:32:04]} {[%emt 00:00:06]} 5. a4 {[%clk 01:31:50]} {[%emt 00:00:09]}
Bb4 {[%clk 01:32:26]} {[%emt 00:00:07]} 6. e3 {[%clk 01:32:00]} {[%emt
00:00:20]} b5 {[%clk 01:32:51]} {[%emt 00:00:06]} 7. Bd2 {[%clk 01:31:31]}
{[%emt 00:00:59]} a5 {[%clk 01:33:13]} {[%emt 00:00:08]} 8. axb5 {[%clk
01:31:55]} {[%emt 00:00:06]} Bxc3 {[%clk 01:33:33]} {[%emt 00:00:10]} 9. Bxc3
{[%clk 01:32:04]} {[%emt 00:00:21]} cxb5 {[%clk 01:33:55]} {[%emt 00:00:07]} 10.
b3 {[%clk 01:31:52]} {[%emt 00:00:43]} Bb7 {[%clk 01:34:17]} {[%emt 00:00:08]}
11. bxc4 {[%clk 01:32:10]} {[%emt 00:00:12]} b4 {[%clk 01:34:44]} {[%emt
00:00:02]} 12. Bb2 {[%clk 01:32:26]} {[%emt 00:00:15]} Nf6 {[%clk 01:35:09]}
{[%emt 00:00:05]} 13. Bd3 {[%clk 01:30:06]} {[%emt 00:02:50]} O-O {[%clk
01:33:41]} {[%emt 00:01:59]} 14. O-O {[%clk 01:30:29]} {[%emt 00:00:06]} Nbd7
{[%clk 01:34:02]} {[%emt 00:00:09]} 15. Nd2 {[%clk 01:30:55]} {[%emt 00:00:04]}
Qc7 {[%clk 01:32:09]} {[%emt 00:02:22]} 16. h3 {[%clk 01:23:11]} {[%emt
00:08:15]} a4 {[%clk 01:22:41]} {[%emt 00:09:58]} 17. e4 {[%clk 01:18:33]}
{[%emt 00:05:07]} a3 {[%clk 01:23:02]} {[%emt 00:00:10]} 18. Bc1 {[%clk
01:18:55]} {[%emt 00:00:08]} e5 {[%clk 01:23:31]} {[%emt 00:00:02]} 19. d5
{[%clk 01:06:52]} {[%emt 00:12:32]} Nc5 {[%clk 01:21:16]} {[%emt 00:02:45]} 20.
Bc2 {[%clk 01:04:08]} {[%emt 00:03:13]} Ba6 {[%clk 01:18:33]} {[%emt 00:03:13]}
21. Re1 {[%clk 01:03:30]} {[%emt 00:01:08]} Nfd7 {[%clk 01:13:01]} {[%emt
00:06:02]} 22. Bb3 {[%clk 01:01:50]} {[%emt 00:02:10]} Rfc8 {[%clk 01:04:02]}
{[%emt 00:09:29]} 23. Ba2 {[%clk 01:01:50]} {[%emt 00:00:31]} Rab8 {[%clk
00:55:37]} {[%emt 00:08:55]} 24. Rb1 {[%clk 01:00:52]} {[%emt 00:01:27]} Qa5
{[%clk 00:55:13]} {[%emt 00:00:54]} 25. Re3 {[%clk 00:57:28]} {[%emt 00:03:54]}
Nb6 {[%clk 00:51:16]} {[%emt 00:04:27]} 26. Qh5 {[%clk 00:54:19]} {[%emt
00:03:40]} f6 {[%clk 00:51:03]} {[%emt 00:00:43]} 27. Qg4 {[%clk 00:53:34]}
{[%emt 00:01:16]} Nba4 {[%clk 00:46:40]} {[%emt 00:04:51]} 28. Rg3 {[%clk
00:53:45]} {[%emt 00:00:20]} Rc7 {[%clk 00:44:05]} {[%emt 00:03:05]} 29. Bxa3
{[%clk 00:43:45]} {[%emt 00:10:29]} Bc8 {[%clk 00:44:20]} {[%emt 00:00:15]} 30.
Qh5 {[%clk 00:43:05]} {[%emt 00:01:10]} g6 {[%clk 00:38:15]} {[%emt 00:06:35]}
31. Qd1 {[%clk 00:32:31]} {[%emt 00:11:04]} Rcb7 {[%clk 00:38:00]} {[%emt
00:00:46]} 32. Bb2 {[%clk 00:31:05]} {[%emt 00:01:55]} Nc3 {[%clk 00:25:50]}
{[%emt 00:12:41]} 33. Qf3 {[%clk 00:12:18]} {[%emt 00:19:17]} Kg7 {[%clk
00:17:19]} {[%emt 00:09:01]} 34. Ra1 {[%clk 00:07:43]} {[%emt 00:05:04]} Nxa2
{[%clk 00:16:59]} {[%emt 00:00:50]} 35. Nb3 {[%clk 00:08:10]} {[%emt 00:00:04]}
Nxb3 {[%clk 00:16:41]} {[%emt 00:00:48]} 36. Qxb3 {[%clk 00:08:33]} {[%emt
00:00:06]} Ra8 {[%clk 00:16:13]} {[%emt 00:00:58]} 37. c5 {[%clk 00:08:28]}
{[%emt 00:00:36]} Rba7 {[%clk 00:12:03]} {[%emt 00:04:40]} 38. c6 {[%clk
00:08:46]} {[%emt 00:00:12]} Qc5 {[%clk 00:10:58]} {[%emt 00:01:34]} 39. Rd3
{[%clk 00:06:49]} {[%emt 00:02:28]} Ba6 {[%clk 00:09:39]} {[%emt 00:01:48]} 40.
Rxa2 {[%emt 00:00:11]} Bxd3 {[%clk 00:09:34]} {[%emt 00:00:33]} 41. Rxa7+
{[%clk 00:07:31]} {[%emt 00:00:10]} Rxa7 {[%clk 00:09:21]} {[%emt 00:00:42]} 42.
Qxd3 {[%clk 00:07:56]} {[%emt 00:00:05]} Kf7 {[%clk 00:06:08]} {[%emt
00:03:44]} 43. Kh2 {[%clk 00:06:24]} {[%emt 00:02:02]} Ke7 {[%clk 00:05:20]}
{[%emt 00:01:18]} 44. f4 {[%clk 00:06:35]} {[%emt 00:00:19]} exf4 {[%clk
00:00:33]} {[%emt 00:05:17]} 45. Bd4 {[%clk 00:04:47]} {[%emt 00:02:18]} 1-0

[Event "The Allsvenskan 2024/25 Div I 3: SS Manhem II - SS Manhem"]
[Site "Goteborgs Schackcentrum, Vegatan 20, Gothenburg, Sweden"]
[Date "2025.01.12"]
[Round "1.4"]
[White "Lennerstad, Allan"]
[Black "Akesson, Joel"]
[Result "0-1"]
[TimeControl "90 minutes for 40 moves + 30 minutes for the rest of the game + 30 seconds per move from move one."]
[BlackTitle "FM"]
[WhiteFideId "1723774"]
[BlackFideId "1705040"]
[WhiteElo "1996"]
[BlackElo "2224"]

1. d4 {[%clk 01:30:59]} {[%emt 00:00:01]} Nf6 {[%clk 01:30:51]} {[%emt
00:00:09]} 2. Nf3 {[%clk 01:31:23]} {[%emt 00:00:06]} g6 {[%clk 01:30:46]}
{[%emt 00:00:34]} 3. c4 {[%clk 01:29:23]} {[%emt 00:02:30]} Bg7 {[%clk
01:30:29]} {[%emt 00:00:48]} 4. Nc3 {[%clk 01:29:31]} {[%emt 00:00:22]} d6
{[%clk 01:30:02]} {[%emt 00:00:57]} 5. e4 {[%clk 01:29:46]} {[%emt 00:00:15]}
Nbd7 {[%clk 01:27:26]} {[%emt 00:03:04]} 6. Bd3 {[%clk 01:19:47]} {[%emt
00:10:30]} e5 {[%clk 01:24:01]} {[%emt 00:03:55]} 7. dxe5 {[%clk 01:16:11]}
{[%emt 00:04:07]} Nxe5 {[%clk 01:16:58]} {[%emt 00:07:32]} 8. Nxe5 {[%clk
01:16:13]} {[%emt 00:00:28]} dxe5 {[%clk 01:17:23]} {[%emt 00:00:05]} 9. O-O
{[%clk 01:01:27]} {[%emt 00:15:16]} O-O {[%clk 01:13:50]} {[%emt 00:04:04]} 10.
c5 {[%clk 00:58:52]} {[%emt 00:03:05]} c6 {[%clk 01:06:10]} {[%emt 00:08:09]}
11. h3 {[%clk 00:47:23]} {[%emt 00:11:59]} Nh5 {[%clk 00:53:28]} {[%emt
00:13:12]} 12. Bc4 {[%clk 00:44:06]} {[%emt 00:03:48]} Qf6 {[%clk 00:47:18]}
{[%emt 00:06:38]} 13. Qb3 {[%clk 00:35:47]} {[%emt 00:08:51]} Nf4 {[%emt
00:05:52]} 14. Ne2 {[%clk 00:33:49]} Be6 {[%clk 00:21:53]} {[%emt 00:23:00]} 15.
Nxf4 {[%clk 00:24:37]} {[%emt 00:09:42]} Bxc4 {[%clk 00:21:57]} {[%emt
00:00:26]} 16. Qxc4 {[%clk 00:22:58]} {[%emt 00:02:10]} exf4 {[%clk 00:22:22]}
{[%emt 00:00:05]} 17. e5 {[%clk 00:18:44]} {[%emt 00:04:44]} Qe6 {[%clk
00:20:24]} {[%emt 00:02:27]} 18. Qb4 {[%clk 00:18:13]} {[%emt 00:01:02]} f3
{[%clk 00:19:35]} {[%emt 00:01:19]} 19. Bf4 {[%clk 00:13:49]} {[%emt 00:04:54]}
fxg2 {[%clk 00:17:39]} {[%emt 00:02:25]} 20. Kxg2 {[%clk 00:14:01]} {[%emt
00:00:18]} Bxe5 {[%clk 00:16:03]} {[%emt 00:02:06]} 21. Bxe5 {[%clk 00:12:50]}
{[%emt 00:01:41]} Qxe5 {[%clk 00:16:26]} {[%emt 00:00:06]} 22. Rae1 {[%clk
00:08:40]} {[%emt 00:04:41]} Qg5+ {[%clk 00:15:03]} {[%emt 00:01:51]} 23. Kh2
{[%clk 00:09:03]} {[%emt 00:00:10]} Rae8 {[%clk 00:13:16]} {[%emt 00:02:16]} 24.
Rc1 {[%clk 00:06:36]} {[%emt 00:02:57]} Re7 {[%clk 00:10:01]} {[%emt 00:03:44]}
25. Rfe1 {[%clk 00:04:34]} {[%emt 00:02:34]} Rfe8 {[%clk 00:09:15]} {[%emt
00:01:15]} 26. Rxe7 {[%clk 00:03:43]} {[%emt 00:01:21]} Rxe7 {[%clk 00:09:35]}
{[%emt 00:00:09]} 27. Rd1 {[%clk 00:04:03]} {[%emt 00:00:12]} Re2 {[%clk
00:06:03]} {[%emt 00:04:02]} 28. Qd4 {[%clk 00:04:11]} {[%emt 00:00:21]} Qd5
{[%clk 00:04:33]} {[%emt 00:02:00]} 29. Qxd5 {[%clk 00:01:45]} {[%emt
00:02:57]} cxd5 {[%clk 00:04:58]} {[%emt 00:00:05]} 30. Rxd5 {[%clk 00:01:49]}
{[%emt 00:00:25]} Rxf2+ {[%clk 00:05:12]} {[%emt 00:00:16]} 31. Kg3 {[%clk
00:02:13]} {[%emt 00:00:07]} Rxb2 {[%clk 00:05:38]} {[%emt 00:00:04]} 32. Rd7
{[%clk 00:01:57]} {[%emt 00:00:46]} a5 {[%clk 00:04:46]} {[%emt 00:01:21]} 33.
Kf4 {[%clk 00:01:13]} {[%emt 00:01:15]} a4 {[%clk 00:04:05]} {[%emt 00:01:11]}
34. Ke5 {[%clk 00:01:29]} {[%emt 00:00:14]} Kg7 {[%clk 00:04:01]} {[%emt
00:00:34]} 35. a3 {[%clk 00:01:39]} {[%emt 00:00:20]} Rb3 {[%clk 00:04:04]}
{[%emt 00:00:25]} 36. h4 {[%clk 00:02:06]} {[%emt 00:00:04]} h6 {[%clk
00:03:07]} {[%emt 00:01:27]} 37. Rc7 {[%clk 00:01:04]} {[%emt 00:01:33]} g5
{[%clk 00:02:29]} {[%emt 00:01:07]} 38. hxg5 {[%clk 00:01:24]} {[%emt
00:00:10]} hxg5 {[%clk 00:02:55]} {[%emt 00:00:04]} 39. Kf5 {[%clk 00:01:03]}
{[%emt 00:00:51]} Rb5 {[%clk 00:02:24]} {[%emt 00:01:00]} 40. Kg4 {[%clk
00:00:31]} {[%emt 00:01:03]} Kg6 {[%clk 00:02:36]} 0-1

[Event "The Allsvenskan 2024/25 Div I 3: SS Manhem II - SS Manhem"]
[Site "Goteborgs Schackcentrum, Vegatan 20, Gothenburg, Sweden"]
[Date "2025.01.12"]
[Round "1.5"]
[White "Karlsson, Stefan"]
[Black "Almemo, Fredrik"]
[Result "1/2-1/2"]
[TimeControl "90 minutes for 40 moves + 30 minutes for the rest of the game + 30 seconds per move from move one."]
[WhiteFideId "1771183"]
[BlackFideId "1721186"]
[WhiteElo "2030"]
[BlackElo "1901"]

1. e4 {[%clk 01:30:52]} {[%emt 00:00:07]} e6 {[%clk 01:30:46]} {[%emt
00:00:15]} 2. d4 {[%clk 01:31:16]} {[%emt 00:00:05]} d5 {[%clk 01:31:09]}
{[%emt 00:00:08]} 3. e5 {[%clk 01:31:26]} {[%emt 00:00:20]} c5 {[%clk
01:31:23]} {[%emt 00:00:16]} 4. c3 {[%clk 01:31:49]} {[%emt 00:00:06]} Nc6
{[%clk 01:31:43]} {[%emt 00:00:11]} 5. Nf3 {[%clk 01:32:12]} {[%emt 00:00:06]}
Bd7 {[%clk 01:29:28]} {[%emt 00:02:45]} 6. a3 {[%clk 01:31:11]} {[%emt
00:01:31]} Qb6 {[%clk 01:26:31]} {[%emt 00:03:27]} 7. b4 {[%clk 01:27:01]}
{[%emt 00:04:40]} cxd4 {[%clk 01:24:26]} {[%emt 00:02:36]} 8. cxd4 {[%clk
01:27:24]} {[%emt 00:00:06]} a6 {[%clk 01:20:28]} {[%emt 00:04:29]} 9. Nc3
{[%clk 01:23:34]} {[%emt 00:04:19]} Rc8 {[%clk 01:19:43]} {[%emt 00:01:16]} 10.
Na4 {[%clk 01:21:20]} {[%emt 00:02:44]} Qa7 {[%clk 01:18:53]} {[%emt 00:01:20]}
11. Nc5 {[%clk 01:19:37]} {[%emt 00:02:13]} a5 {[%clk 01:16:02]} {[%emt
00:03:21]} 12. Nxd7 {[%clk 01:13:01]} {[%emt 00:07:06]} Kxd7 {[%clk 01:10:31]}
{[%emt 00:06:02]} 13. b5 {[%clk 01:12:46]} {[%emt 00:00:44]} Nd8 {[%clk
01:09:17]} {[%emt 00:01:45]} 14. Bd3 {[%clk 01:07:11]} {[%emt 00:06:04]} Ne7
{[%clk 01:04:31]} {[%emt 00:05:17]} 15. O-O {[%clk 01:06:15]} {[%emt 00:01:25]}
h6 {[%clk 00:59:08]} {[%emt 00:05:54]} 16. h4 {[%clk 00:59:18]} {[%emt
00:07:27]} Nf5 {[%clk 00:55:58]} {[%emt 00:03:41]} 17. Qa4 {[%clk 00:56:52]}
{[%emt 00:02:55]} b6 {[%clk 00:52:11]} {[%emt 00:04:17]} 18. g4 {[%clk
00:55:11]} {[%emt 00:02:10]} Ne7 {[%clk 00:49:52]} {[%emt 00:02:50]} 19. Bd2
{[%clk 00:47:36]} {[%emt 00:08:04]} h5 {[%clk 00:46:41]} {[%emt 00:03:43]} 20.
g5 {[%clk 00:47:37]} {[%emt 00:00:28]} Nf5 {[%clk 00:46:38]} {[%emt 00:00:34]}
21. Rfc1 {[%clk 00:44:38]} {[%emt 00:03:27]} Be7 {[%clk 00:42:02]} {[%emt
00:05:07]} 22. Rxc8 {[%clk 00:41:56]} {[%emt 00:03:11]} Kxc8 {[%clk 00:42:29]}
{[%emt 00:00:04]} 23. Qc2+ {[%clk 00:38:06]} {[%emt 00:04:19]} Kb8 {[%clk
00:42:02]} {[%emt 00:00:57]} 24. Bxf5 {[%clk 00:35:34]} {[%emt 00:03:01]} exf5
{[%clk 00:41:39]} {[%emt 00:00:54]} 25. Qxf5 {[%clk 00:34:31]} {[%emt
00:01:33]} g6 {[%clk 00:42:07]} {[%emt 00:00:03]} 26. Qd3 {[%clk 00:30:45]}
{[%emt 00:04:16]} Ne6 {[%clk 00:39:43]} {[%emt 00:02:54]} 27. Ne1 {[%clk
00:26:12]} {[%emt 00:05:02]} Rc8 {[%clk 00:39:45]} {[%emt 00:00:29]} 28. Bc1
{[%clk 00:11:46]} {[%emt 00:14:56]} Rc4 {[%clk 00:38:25]} {[%emt 00:01:50]} 29.
Bb2 {[%clk 00:12:05]} {[%emt 00:00:11]} Qd7 {[%clk 00:38:13]} {[%emt 00:00:43]}
30. a4 {[%clk 00:12:03]} {[%emt 00:00:31]} Bb4 {[%clk 00:35:41]} {[%emt
00:03:02]} 31. Ng2 {[%clk 00:10:38]} {[%emt 00:01:55]} Qc8 {[%clk 00:34:42]}
{[%emt 00:01:29]} 32. Rd1 {[%clk 00:04:36]} {[%emt 00:06:32]} Bc3 {[%clk
00:29:41]} {[%emt 00:05:31]} 33. Bxc3 {[%clk 00:04:16]} {[%emt 00:00:49]} Rxc3
{[%clk 00:29:23]} {[%emt 00:00:49]} 34. Qd2 {[%clk 00:04:03]} {[%emt 00:00:43]}
Rc2 {[%clk 00:26:49]} {[%emt 00:03:04]} 35. Qd3 {[%clk 00:04:19]} {[%emt
00:00:14]} Rc3 {[%clk 00:11:32]} {[%emt 00:15:47]} 36. Qd2 {[%clk 00:04:24]}
{[%emt 00:00:25]} Rc2 {[%clk 00:11:43]} {[%emt 00:00:19]} 37. Qd3 {[%clk
00:04:21]} {[%emt 00:00:33]} 1/2-1/2